fUST/lending_fUST_20250528
["ID","MTS","AMOUNT","RATE_DAILY","PERIOD"]
[362579284,1748365833022,-430.0,0.00019178,2]
[362579285,1748365833034,-430.0,0.00019178,2]
[362579286,1748365833043,-430.0,0.00019178,2]
[362579287,1748365833053,-430.0,0.00019178,2]
[362579288,1748365833063,-298.93,0.00019178,2]
[362579289,1748365833073,-214.03168901,0.00019178,2]
[362579290,1748365833085,-430.0,0.00019178,2]
[362579291,1748365833095,-430.0,0.00019178,2]
[362579292,1748365833105,-430.0,0.00019178,2]
[362579293,1748365833115,-305.95459838,0.00019178,2]
[362579294,1748365833126,-430.0,0.00019178,2]
[362579295,1748365833135,-430.0,0.00019178,2]
[362579296,1748365833146,-430.0,0.00019178,2]
[362579297,1748365833155,-430.0,0.00019178,2]
[362579298,1748365833165,-430.0,0.00019178,2]
[362579299,1748365833176,-288.13098849,0.00019178,2]
[362579326,1748365838397,-216.82587343,0.00019177,2]
[362579328,1748365838407,-500.0,0.00019177,2]
[362579330,1748365838417,-500.0,0.00019177,2]
[362579332,1748365838427,-500.0,0.00019177,2]
[362579334,1748365838437,-479.775588,0.00019177,2]
[362579336,1748365838447,-454.95930057,0.00019177,2]
[362579589,1748365840827,-45.04069943,0.00019177,2]
[362579591,1748365840840,-42.15803852,0.00019177,2]
[362579593,1748365840852,-457.84196148,0.00019177,2]
[362579595,1748365840862,-500.0,0.00019177,2]
[362579597,1748365840872,-500.0,0.00019177,2]
[362579599,1748365840882,-500.0,0.00019177,2]
[362579601,1748365840892,-500.0,0.00019177,2]
[362579603,1748365840903,-446.03343797,0.00019177,2]
[362579605,1748365840912,-500.0,0.00019177,2]
[362579609,1748365840922,-500.0,0.00019177,2]
[362579611,1748365840931,-267.82012441,0.00019177,2]
[362579897,1748365843597,-232.17987559,0.00019177,2]
[362579899,1748365843608,-141.86901151,0.00019178,2]
[362579900,1748365843618,-430.0,0.00019178,2]
[362579903,1748365843629,-430.0,0.00019178,2]
[362579905,1748365843639,-430.0,0.00019178,2]
[362579907,1748365843651,-430.0,0.00019178,2]
[362579909,1748365843661,-430.0,0.00019178,2]
[362579911,1748365843670,-430.0,0.00019178,2]
[362579912,1748365843680,-309.94300867,0.00019178,2]
[362579914,1748365843689,-430.0,0.00019178,2]
[362579916,1748365843699,-430.0,0.00019178,2]
[362579918,1748365843709,-190.99538037,0.00019178,2]
[362579920,1748365843718,-430.0,0.00019178,2]
[362579922,1748365843727,-171.7923627,0.00019178,2]
[362579924,1748365843737,-430.0,0.00019178,2]
[362579926,1748365843749,-430.0,0.00019178,2]
[362579928,1748365843758,-430.0,0.00019178,2]
[362579930,1748365843767,-430.0,0.00019178,2]
[362579932,1748365843777,-430.0,0.00019178,2]
[362579934,1748365843786,-507.96,0.00019178,2]
[362579936,1748365843796,-430.0,0.00019178,2]
[362579938,1748365843806,-430.0,0.00019178,2]
[362579940,1748365843815,-430.0,0.00019178,2]
[362579943,1748365843825,-430.0,0.00019178,2]
[362579945,1748365843834,-430.0,0.00019178,2]
[362579947,1748365843844,-430.0,0.00019178,2]
[362579948,1748365843854,-430.0,0.00019178,2]
[362579950,1748365843863,-430.0,0.00019178,2]
[362579952,1748365843873,-1133.01,0.00019178,2]
[362579954,1748365843882,-430.0,0.00019178,2]
[362579956,1748365843892,-18.15928826,0.00019178,2]
[362579959,1748365843904,-411.84071174,0.00019178,2]
[362579960,1748365843914,-430.0,0.00019178,2]
[362579962,1748365843924,-430.0,0.00019178,2]
[362579964,1748365843934,-430.0,0.00019178,2]
[362579966,1748365843945,-430.0,0.00019178,2]
[362579968,1748365843954,-430.0,0.00019178,2]
[362579970,1748365843964,-430.0,0.00019178,2]
[362579972,1748365843975,-430.0,0.00019178,2]
[362579974,1748365843984,-430.0,0.00019178,2]
[362579976,1748365843994,-430.0,0.00019178,2]
[362579978,1748365844004,-430.0,0.00019178,2]
[362579980,1748365844013,-430.0,0.00019178,2]
[362579982,1748365844023,-430.0,0.00019178,2]
[362579984,1748365844033,-430.0,0.00019178,2]
[362579986,1748365844042,-323.9,0.00019178,2]
[362579988,1748365844051,-539.07,0.00019178,2]
[362579990,1748365844060,-990.69,0.00019178,2]
[362579992,1748365844070,-463.9,0.00019178,2]
[362579994,1748365844079,-430.0,0.00019178,2]
[362579996,1748365844090,-430.0,0.00019178,2]
[362579998,1748365844099,-430.0,0.00019178,2]
[362580000,1748365844108,-430.0,0.00019178,2]
[362580001,1748365844118,-430.0,0.00019178,2]
[362580003,1748365844127,-430.0,0.00019178,2]
[362580005,1748365844137,-430.0,0.00019178,2]
[362580007,1748365844146,-430.0,0.00019178,2]
[362580009,1748365844156,-430.0,0.00019178,2]
[362580011,1748365844166,-430.0,0.00019178,2]
[362580013,1748365844175,-430.0,0.00019178,2]
[362580015,1748365844184,-430.0,0.00019178,2]
[362580017,1748365844193,-417.44,0.00019178,2]
[362580019,1748365844202,-573.92597905,0.00019178,2]
[362580021,1748365844212,-448.42,0.00019178,2]
[362580023,1748365844221,-528.81,0.00019178,2]
[362580025,1748365844231,-430.0,0.00019178,2]
[362580027,1748365844241,-430.0,0.00019178,2]
[362580028,1748365844250,-430.0,0.00019178,2]
[362580030,1748365844261,-176.16,0.00019178,2]
[362580032,1748365844271,-430.0,0.00019178,2]
[362580034,1748365844281,-522.97,0.00019178,2]
[362580036,1748365844290,-430.0,0.00019178,2]
[362580038,1748365844299,-430.0,0.00019178,2]
[362580040,1748365844309,-437.18,0.00019178,2]
[362580042,1748365844318,-504.72,0.00019178,2]
[362580044,1748365844327,-430.0,0.00019178,2]
[362580046,1748365844340,-430.0,0.00019178,2]
[362580048,1748365844350,-430.0,0.00019178,2]
[362580050,1748365844361,-430.0,0.00019178,2]
[362580052,1748365844370,-430.0,0.00019178,2]
[362580054,1748365844379,-430.0,0.00019178,2]
[362580056,1748365844389,-390.61,0.00019178,2]
[362580058,1748365844398,-430.0,0.00019178,2]
[362580060,1748365844407,-430.0,0.00019178,2]
[362580062,1748365844417,-450.54,0.00019178,2]
[362580064,1748365844427,-430.0,0.00019178,2]
[362580080,1748365844578,-430.0,0.00019178,2]
[362580082,1748365844589,-430.0,0.00019178,2]
[362580084,1748365844601,-430.0,0.00019178,2]
[362580086,1748365844610,-563.81126297,0.00019178,2]
[362580088,1748365844619,-430.0,0.00019178,2]
[362580090,1748365844630,-387.79,0.00019178,2]
[362580092,1748365844640,-488.64,0.00019178,2]
[362580094,1748365844651,-430.0,0.00019178,2]
[362580096,1748365844660,-430.0,0.00019178,2]
[362580098,1748365844670,-430.0,0.00019178,2]
[362580100,1748365844679,-430.0,0.00019178,2]
[362580102,1748365844689,-430.0,0.00019178,2]
[362580104,1748365844698,-673.99,0.00019178,2]
[362580106,1748365844708,-471.76,0.00019178,2]
[362580108,1748365844718,-141.91444915,0.00019178,2]
[362580110,1748365844730,-893.86555085,0.00019178,2]
[362580112,1748365844740,-430.0,0.00019178,2]
[362580114,1748365844750,-430.0,0.00019178,2]
[362580116,1748365844759,-430.0,0.00019178,2]
[362580118,1748365844769,-430.0,0.00019178,2]
[362580120,1748365844779,-430.0,0.00019178,2]
[362580122,1748365844789,-430.0,0.00019178,2]
[362580124,1748365844799,-430.0,0.00019178,2]
[362580126,1748365844808,-430.0,0.00019178,2]
[362580128,1748365844818,-430.0,0.00019178,2]
[362580130,1748365844827,-430.0,0.00019178,2]
[362580131,1748365844838,-430.0,0.00019178,2]
[362580133,1748365844847,-430.0,0.00019178,2]
[362580135,1748365844857,-430.0,0.00019178,2]
[362580137,1748365844866,-430.0,0.00019178,2]
[362580139,1748365844877,-430.0,0.00019178,2]
[362580141,1748365844887,-430.0,0.00019178,2]
[362580143,1748365844897,-430.0,0.00019178,2]
[362580145,1748365844907,-500.0,0.00019178,2]
[362580147,1748365844916,-500.0,0.00019178,2]
[362580149,1748365844926,-500.0,0.00019178,2]
[362580151,1748365844935,-500.0,0.00019178,2]
[362580153,1748365844945,-500.0,0.00019178,2]
[362580155,1748365844954,-388.88423964,0.00019178,2]
[362580157,1748365844963,-500.0,0.00019178,2]
[362580159,1748365844973,-468.50805628,0.00019178,2]
[362580298,1748365846654,-62.46194372,0.00019178,2]
[362580300,1748365846665,-514.2612756,0.00019178,2]
[362580302,1748365846674,-158.478042,0.00019178,2]
[362580304,1748365846683,-1421.96,0.00019208,2]
[362580306,1748365846693,-268.81,0.00019452,2]
[362580308,1748365846702,-430.0,0.00019452,2]
[362580310,1748365846711,-430.0,0.00019452,2]
[362580312,1748365846721,-430.0,0.00019452,2]
[362580314,1748365846731,-411.19,0.00019452,2]
[362580315,1748365846741,-430.0,0.00019452,2]
[362580317,1748365846750,-357.16,0.00019452,2]
[362580319,1748365846760,-430.0,0.00019452,2]
[362580322,1748365846771,-212.9141322,0.00019452,2]
[362580324,1748365846782,-430.0,0.00019452,2]
[362580326,1748365846791,-539.88,0.00019452,2]
[362580328,1748365846801,-430.0,0.00019452,2]
[362580330,1748365846810,-430.0,0.00019452,2]
[362580331,1748365846820,-430.0,0.00019452,2]
[362580332,1748365846830,-430.0,0.00019452,2]
[362580333,1748365846839,-250.49,0.00019452,2]
[362580334,1748365846849,-1133.01,0.00019452,2]
[362580335,1748365846859,-430.0,0.00019452,2]
[362580336,1748365846869,-430.0,0.00019452,2]
[362580337,1748365846879,-200.57,0.00019452,2]
[362580338,1748365846889,-430.0,0.00019452,2]
[362580339,1748365846899,-430.0,0.00019452,2]
[362580340,1748365846908,-430.0,0.00019452,2]
[362580341,1748365846918,-990.69,0.00019452,2]
[362580342,1748365846927,-430.0,0.00019452,2]
[362580343,1748365846936,-430.0,0.00019452,2]
[362580344,1748365846947,-430.0,0.00019452,2]
[362580345,1748365846956,-281.53,0.00019452,2]
[362580346,1748365846966,-430.0,0.00019452,2]
[362580347,1748365846976,-430.0,0.00019452,2]
[362580348,1748365846985,-430.0,0.00019452,2]
[362580349,1748365846994,-430.0,0.00019452,2]
[362580350,1748365847006,-430.0,0.00019452,2]
[362580351,1748365847015,-266.09,0.00019452,2]
[362580352,1748365847025,-208.21779657,0.00019452,2]
[362580353,1748365847034,-430.0,0.00019452,2]
[362580354,1748365847043,-332.83,0.00019452,2]
[362580355,1748365847052,-430.0,0.00019452,2]
[362580356,1748365847062,-673.99,0.00019452,2]
[362580357,1748365847071,-1035.78,0.00019452,2]
[362580358,1748365847080,-430.0,0.00019452,2]
[362580359,1748365847091,-550.89,0.00019452,2]
[362580360,1748365847100,-200.75,0.00019452,2]
[362580361,1748365847109,-430.0,0.00019452,2]
[362580362,1748365847118,-430.0,0.00019452,2]
[362580363,1748365847127,-430.0,0.00019452,2]
[362580364,1748365847136,-531.93,0.00019452,2]
[362580365,1748365847145,-504.89,0.00019452,2]
[362580366,1748365847155,-430.0,0.00019452,2]
[362580367,1748365847164,-430.0,0.00019452,2]
[362580368,1748365847173,-537.229776,0.00019452,2]
[362580369,1748365847182,-430.0,0.00019452,2]
[362580370,1748365847192,-530.97,0.00019452,2]
[362580371,1748365847202,-500.0,0.00019474,2]
[362580372,1748365847211,-422.70527199,0.00019608,2]
[362580373,1748365847221,-212.62946336,0.00019608,2]
[362580374,1748365847230,-160.0,0.00019608,2]
[362580375,1748365847239,-160.0,0.00019608,2]
[362580376,1748365847248,-160.0,0.00019608,2]
[362580377,1748365847258,-160.0,0.00019608,2]
[362580378,1748365847267,-160.0,0.00019608,2]
[362580379,1748365847276,-842.5625,0.00019608,2]
[362580380,1748365847289,-229.18805157,0.00019608,2]
[362580382,1748365847298,-12656.54583329,0.00019611,2]
[362580384,1748365847307,-366.65,0.00019726,2]
[362580386,1748365847317,-1133.01,0.00019726,2]
[362580388,1748365847326,-430.0,0.00019726,2]
[362580390,1748365847335,-174.33,0.00019726,2]
[362580392,1748365847346,-430.0,0.00019726,2]
[362580394,1748365847355,-430.0,0.00019726,2]
[362580395,1748365847364,-208.44,0.00019726,2]
[362580397,1748365847374,-990.69,0.00019726,2]
[362580400,1748365847384,-430.0,0.00019726,2]
[362580402,1748365847393,-430.0,0.00019726,2]
[362580404,1748365847403,-430.0,0.00019726,2]
[362580406,1748365847413,-430.0,0.00019726,2]
[362580408,1748365847422,-430.0,0.00019726,2]
[362580410,1748365847432,-430.0,0.00019726,2]
[362580412,1748365847441,-430.0,0.00019726,2]
[362580414,1748365847450,-430.0,0.00019726,2]
[362580416,1748365847459,-430.0,0.00019726,2]
[362580418,1748365847469,-673.99,0.00019726,2]
[362580420,1748365847478,-1035.78,0.00019726,2]
[362580422,1748365847487,-430.0,0.00019726,2]
[362580424,1748365847498,-430.0,0.00019726,2]
[362580425,1748365847507,-430.0,0.00019726,2]
[362580426,1748365847517,-430.0,0.00019726,2]
[362580427,1748365847526,-430.0,0.00019726,2]
[362580428,1748365847535,-430.0,0.00019726,2]
[362580430,1748365847545,-530.97,0.00019726,2]
[362580432,1748365847556,-4507.95181229,0.0002,2]
[362580434,1748365847569,-1133.01,0.0002,2]
[362580436,1748365847579,-430.0,0.0002,2]
[362580438,1748365847591,-430.0,0.0002,2]
[362580440,1748365847603,-430.0,0.0002,2]
[362580442,1748365847612,-990.69,0.0002,2]
[362580444,1748365847623,-430.0,0.0002,2]
[362580446,1748365847633,-430.0,0.0002,2]
[362580448,1748365847645,-430.0,0.0002,2]
[362580450,1748365847656,-430.0,0.0002,2]
[362580452,1748365847665,-443.65472853,0.0002,2]
[362580453,1748365847676,-240.29,0.0002,2]
[362580454,1748365847685,-430.0,0.0002,2]
[362580455,1748365847696,-430.0,0.0002,2]
[362580456,1748365847706,-430.0,0.0002,2]
[362580457,1748365847715,-673.99,0.0002,2]
[362580458,1748365847725,-1035.78,0.0002,2]
[362580459,1748365847736,-430.0,0.0002,2]
[362580460,1748365847746,-430.0,0.0002,2]
[362580462,1748365847756,-430.0,0.0002,2]
[362580464,1748365847766,-430.0,0.0002,2]
[362580466,1748365847775,-430.0,0.0002,2]
[362580468,1748365847785,-530.97,0.0002,2]
[362580470,1748365847795,-2843.92,0.00020123,2]
[362580472,1748365847805,-420.0,0.00020174,2]
[362580474,1748365847814,-587.092471,0.00020187,2]
[362580476,1748365847824,-1133.01,0.00020273,2]
[362580479,1748365847834,-430.0,0.00020273,2]
[362580481,1748365847848,-430.0,0.00020273,2]
[362580483,1748365847858,-430.0,0.00020273,2]
[362580485,1748365847868,-990.69,0.00020273,2]
[362580487,1748365847877,-430.0,0.00020273,2]
[362580489,1748365847886,-430.0,0.00020273,2]
[362580491,1748365847896,-430.0,0.00020273,2]
[362580493,1748365847905,-430.0,0.00020273,2]
[362580495,1748365847915,-430.0,0.00020273,2]
[362580497,1748365847924,-314.28,0.00020273,2]
[362580499,1748365847935,-430.0,0.00020273,2]
[362580501,1748365847944,-673.99,0.00020273,2]
[362580503,1748365847954,-1035.78,0.00020273,2]
[362580505,1748365847963,-430.0,0.00020273,2]
[362580507,1748365847973,-404.21,0.00020273,2]
[362580509,1748365847982,-430.0,0.00020273,2]
[362580511,1748365847991,-430.0,0.00020273,2]
[362580512,1748365848001,-430.0,0.00020273,2]
[362580515,1748365848011,-530.97,0.00020273,2]
[362580516,1748365848020,-250.3,0.00020371,2]
[362580518,1748365848029,-157.45112762,0.000204,2]
[362580520,1748365848039,-56588.17871982,0.0002047,2]
[362580522,1748365848049,-9775.00745147,0.0002047,3]
[362580525,1748365848059,-151.0,0.0002047,2]
[362580527,1748365848068,-151.0,0.0002047,2]
[362580529,1748365848078,-151.0,0.0002047,2]
[362580531,1748365848091,-151.0,0.0002047,2]
[362580533,1748365848101,-151.0,0.0002047,2]
[362580534,1748365848111,-151.0,0.0002047,2]
[362580536,1748365848120,-151.0,0.0002047,2]
[362580538,1748365848129,-151.0,0.00020471,2]
[362580540,1748365848138,-151.0,0.00020471,2]
[362580542,1748365848147,-151.0,0.00020471,2]
[362580544,1748365848156,-151.0,0.00020471,2]
[362580546,1748365848166,-151.0,0.00020471,2]
[362580548,1748365848176,-151.0,0.00020471,2]
[362580550,1748365848186,-151.0,0.00020471,2]
[362580552,1748365848196,-5000.0,0.00020481,2]
[362580554,1748365848206,-5000.0,0.00020481,2]
[362580556,1748365848216,-5000.0,0.00020481,2]
[362580558,1748365848227,-5000.0,0.00020481,2]
[362580560,1748365848237,-4788.60159848,0.00020481,2]
[362580562,1748365848247,-151.0,0.00020481,2]
[362580564,1748365848257,-151.0,0.00020481,2]
[362580566,1748365848267,-500.0,0.00020499,2]
[362580568,1748365848277,-3000.0,0.000205,2]
[362580570,1748365848286,-225.635206,0.00020547,2]
[362580572,1748365848296,-1133.01,0.00020547,2]
[362580574,1748365848306,-430.0,0.00020547,2]
[362580576,1748365848315,-430.0,0.00020547,2]
[362580578,1748365848325,-430.0,0.00020547,2]
[362580580,1748365848335,-990.69,0.00020547,2]
[362580582,1748365848349,-430.0,0.00020547,2]
[362580584,1748365848358,-430.0,0.00020547,2]
[362580586,1748365848368,-430.0,0.00020547,2]
[362580588,1748365848377,-430.0,0.00020547,2]
[362580590,1748365848386,-430.0,0.00020547,2]
[362580592,1748365848395,-430.0,0.00020547,2]
[362580595,1748365848406,-673.99,0.00020547,2]
[362580596,1748365848415,-1035.78,0.00020547,2]
[362580598,1748365848425,-430.0,0.00020547,2]
[362580601,1748365848435,-430.0,0.00020547,2]
[362580603,1748365848445,-430.0,0.00020547,2]
[362580605,1748365848455,-430.0,0.00020547,2]
[362580607,1748365848465,-530.97,0.00020547,2]
[362580609,1748365848475,-8501.82400336,0.0002066,2]
[362580611,1748365848489,-1516.69780055,0.0002066,2]
[362582509,1748366009258,-154.14120635,0.00015415,7]
[362582510,1748366010929,-152.0,0.00015,2]
[362582511,1748366024466,-258.82654172,0.0001485,2]
[362582512,1748366039532,-47.31466463,0.0001485,2]
[362582860,1748366833683,-340.30713314,0.00017058,2]
[362582861,1748366845087,-1258.09033893,0.00017058,2]
[362582862,1748366845110,-73.00156887,0.0001723,2]
[362582878,1748366923929,528.383223,0.00013699,2]
[362582897,1748367031677,-1020.5422256,0.00017,5]
[362582898,1748367031686,-300.0,0.0001723,2]
[362582899,1748367031696,-300.0,0.0001723,2]
[362582900,1748367031706,-300.0,0.0001723,2]
[362582901,1748367031715,-300.0,0.0001723,2]
[362582902,1748367031726,-1200.0,0.0001723,2]
[362582903,1748367031735,-14677.6388985,0.00017231,2]
[362582904,1748367031747,-174.81894868,0.00017485,2]
[362582905,1748367031758,-567.791233,0.00017929,2]
[362582906,1748367031768,-500.0,0.00017982,2]
[362582907,1748367031779,-471.634848,0.0001809,2]
[362582908,1748367031791,-710.36274475,0.00018123,2]
[362582965,1748367037642,-325.91989616,0.00018122,2]
[362582967,1748367037651,-500.0,0.00018122,2]
[362582969,1748367037662,-500.0,0.00018122,2]
[362582971,1748367037672,-500.0,0.00018122,2]
[362582973,1748367037681,-500.0,0.00018122,2]
[362582976,1748367037699,-477.74973594,0.00018122,2]
[362582978,1748367037714,-500.0,0.00018122,2]
[362582980,1748367037724,-500.0,0.00018122,2]
[362582982,1748367037735,-500.0,0.00018122,2]
[362582984,1748367037745,-500.0,0.00018122,2]
[362582987,1748367037755,-500.0,0.00018122,2]
[362582988,1748367037765,-500.0,0.00018122,2]
[362582990,1748367037774,-500.0,0.00018122,2]
[362582992,1748367037785,-500.0,0.00018122,2]
[362582994,1748367037794,-501.00608622,0.00018122,2]
[362582996,1748367037804,-500.0,0.00018122,2]
[362582998,1748367037815,-500.0,0.00018122,2]
[362583000,1748367037824,-500.0,0.00018122,2]
[362583001,1748367037834,-500.0,0.00018122,2]
[362583003,1748367037844,-500.0,0.00018122,2]
[362583005,1748367037855,-500.0,0.00018122,2]
[362583007,1748367037865,-500.0,0.00018122,2]
[362583009,1748367037875,-500.0,0.00018122,2]
[362583012,1748367037885,-500.0,0.00018122,2]
[362583014,1748367037895,-195.7672432,0.00018122,2]
[362583016,1748367037908,-500.0,0.00018122,2]
[362583018,1748367037918,-500.0,0.00018122,2]
[362583020,1748367037928,-500.0,0.00018122,2]
[362583022,1748367037938,-1757.85534635,0.00018123,2]
[362583024,1748367037949,-6117.38600928,0.00018125,2]
[362583026,1748367037959,-6184.9720153,0.00018127,2]
[362583028,1748367037969,-420.0,0.00018814,2]
[362583030,1748367037980,-420.0,0.00018814,2]
[362583032,1748367037991,-300.0,0.00018814,2]
[362583034,1748367038002,-333.33440013,0.000189,2]
[362583037,1748367038013,-3610.84553154,0.000189,2]
[362583039,1748367038023,-1680.0,0.00018908,2]
[362583041,1748367038033,-500.0,0.00018929,2]
[362583043,1748367038043,-368.20414752,0.00019078,2]
[362583045,1748367038053,-500.0,0.00019106,2]
[362583047,1748367038063,-500.0,0.00019106,2]
[362583049,1748367038073,-407.77921518,0.00019106,2]
[362583051,1748367038084,-500.0,0.00019106,2]
[362583053,1748367038093,-500.0,0.00019106,2]
[362583055,1748367038103,-500.0,0.00019106,2]
[362583057,1748367038112,-500.0,0.00019106,2]
[362583059,1748367038121,-643.478945,0.00019106,2]
[362583061,1748367038131,-500.0,0.00019106,2]
[362583063,1748367038141,-3610.84553132,0.00019107,2]
[362583065,1748367038150,-243.83,0.00019164,2]
[362583067,1748367038162,-561.21,0.00019168,3]
[362583069,1748367038171,-430.0,0.00019178,2]
[362583071,1748367038181,-176.14,0.00019178,2]
[362583073,1748367038191,-176.14,0.00019178,2]
[362583075,1748367038200,-176.14036748,0.00019178,2]
[362583077,1748367038209,-430.0,0.00019178,2]
[362583079,1748367038219,-430.0,0.00019178,2]
[362583081,1748367038229,-430.0,0.00019178,2]
[362583083,1748367038240,-430.0,0.00019178,2]
[362583085,1748367038250,-430.0,0.00019178,2]
[362583087,1748367038260,-430.0,0.00019178,2]
[362583089,1748367038270,-254.81450801,0.00019178,2]
[362583091,1748367038280,-430.0,0.00019178,2]
[362583093,1748367038289,-455.6,0.00019178,2]
[362583095,1748367038300,-430.0,0.00019178,2]
[362583098,1748367038315,-430.0,0.00019178,2]
[362583100,1748367038325,-430.0,0.00019178,2]
[362583102,1748367038335,-430.0,0.00019178,2]
[362583104,1748367038346,-430.0,0.00019178,2]
[362583106,1748367038357,-430.0,0.00019178,2]
[362583108,1748367038367,-430.0,0.00019178,2]
[362583110,1748367038377,-430.0,0.00019178,2]
[362583112,1748367038387,-430.0,0.00019178,2]
[362583114,1748367038397,-184.57061891,0.00019178,2]
[362583116,1748367038406,-430.0,0.00019178,2]
[362583118,1748367038416,-430.0,0.00019178,2]
[362583120,1748367038425,-430.0,0.00019178,2]
[362583122,1748367038436,-430.0,0.00019178,2]
[362583124,1748367038446,-430.0,0.00019178,2]
[362583126,1748367038455,-430.0,0.00019178,2]
[362583128,1748367038466,-430.0,0.00019178,2]
[362583130,1748367038475,-500.0,0.00019178,2]
[362583132,1748367038485,-430.0,0.00019178,2]
[362583134,1748367038496,-430.0,0.00019178,2]
[362583137,1748367038506,-430.0,0.00019178,2]
[362583138,1748367038515,-430.0,0.00019178,2]
[362583141,1748367038525,-430.0,0.00019178,2]
[362583143,1748367038535,-430.0,0.00019178,2]
[362583145,1748367038545,-430.0,0.00019178,2]
[362583147,1748367038555,-430.0,0.00019178,2]
[362583149,1748367038564,-430.0,0.00019178,2]
[362583151,1748367038574,-430.0,0.00019178,2]
[362583153,1748367038584,-430.0,0.00019178,2]
[362583155,1748367038594,-430.0,0.00019178,2]
[362583157,1748367038604,-481.53,0.00019178,2]
[362583159,1748367038614,-430.0,0.00019178,2]
[362583161,1748367038624,-430.0,0.00019178,2]
[362583163,1748367038634,-430.0,0.00019178,2]
[362583165,1748367038644,-430.0,0.00019178,2]
[362583167,1748367038654,-430.0,0.00019178,2]
[362583169,1748367038665,-430.0,0.00019178,2]
[362583171,1748367038675,-308.95582234,0.00019178,2]
[362583174,1748367038686,-430.0,0.00019178,2]
[362583176,1748367038696,-430.0,0.00019178,2]
[362583178,1748367038706,-430.0,0.00019178,2]
[362583180,1748367038715,-430.0,0.00019178,2]
[362583182,1748367038726,-430.0,0.00019178,2]
[362583184,1748367038736,-430.0,0.00019178,2]
[362583186,1748367038746,-430.0,0.00019178,2]
[362583188,1748367038756,-230.2457122,0.00019178,2]
[362583190,1748367038767,-430.0,0.00019178,2]
[362583192,1748367038776,-430.0,0.00019178,2]
[362583194,1748367038786,-430.0,0.00019178,2]
[362583196,1748367038796,-430.0,0.00019178,2]
[362583198,1748367038806,-430.0,0.00019178,2]
[362583200,1748367038816,-430.0,0.00019178,2]
[362583202,1748367038826,-430.0,0.00019178,2]
[362583204,1748367038837,-430.0,0.00019178,2]
[362583206,1748367038847,-410.46170922,0.00019178,2]
[362583208,1748367038857,-430.0,0.00019178,2]
[362583210,1748367038866,-430.0,0.00019178,2]
[362583212,1748367038876,-430.0,0.00019178,2]
[362583214,1748367038886,-430.0,0.00019178,2]
[362583216,1748367038895,-430.0,0.00019178,2]
[362583218,1748367038911,-430.0,0.00019178,2]
[362583221,1748367038921,-430.0,0.00019178,2]
[362583223,1748367038933,-430.0,0.00019178,2]
[362583225,1748367038943,-430.0,0.00019178,2]
[362583227,1748367038952,-430.0,0.00019178,2]
[362583229,1748367038961,-430.0,0.00019178,2]
[362583231,1748367038971,-430.0,0.00019178,2]
[362583233,1748367038981,-430.0,0.00019178,2]